[Event "Romanian Rapid Open 2022"]
[Site "Sebes"]
[Date "2022.12.02"]
[Round "7.24"]
[White "Negrean, Andrei"]
[Black "Daianu, Cristian-Clement"]
[Result "0-1"]
[ECO "A91"]
[WhiteElo "1991"]
[BlackElo "2189"]
[Annotator "TA"]
[PlyCount "152"]
[EventDate "2022.12.02"]
[EventType "rapid"]
[EventCountry "ROU"]
[SourceTitle "playchess.com"]
[Source "ChessBase"]
[SourceQuality "1"]
[TimeControl "600+5"]

{[%evp 12,152,32,40,60,35,45,49,47,11,14,4,52,-37,-35,-86,-74,-74,-6,-120,-132,-128,-85,-83,-94,-91,-81,-119,-64,-54,-53,-127,-40,-37,-26,-35,-35,-34,-25,-36,-25,-23,0,-149,-132,-285,-285,-355,-358,-385,-377,-368,-224,-230,-234,-226,-212,-318,-214,-250,-249,-239,-210,-310,-310,-403,-400,-419,-247,-254,-251,-1587,-1503,-1582,-262,-248,-231,-177,-22,-22,-22,-22,-22,-814,-20,-37,-16,-37,-37,-814,-814,-1319,-1402,-1484,-1255,-1233,0,-1064,-608,-1565,-1519,-4134,-1192,-3150,-1818,-29945,-29944,-29953,-29954,-29957,-29959,-5591,-5077,-5732,-1581,-29983,-29983,-29984,-29985,-29985,-29983,-29984,-29985,-29987,-29987,-29987,-29988,-29988,-29989,-29992,-29991,-29991,-29992,-29992,-29993,-29993,-29994,-29994,-29995,-29995,-29995,-29995,-29995]} 1. d4 {[%emt 0:00:03]} f5 {[%emt 0:00:02]} 2. g3 {[%emt 0:00:04]} e6 {[%emt 0:00:07]} 3. Bg2 {[%emt 0:00:03]} Nf6 {[%emt 0:00:02]} 4. c4 {[%emt 0:00:05]} d6 {[%emt 0:00:07]} 5. Nc3 {[%emt 0:00:33]} Be7 {[%emt 0:00:07]} 6. Nh3 {[%emt 0:00:43]} O-O {[%emt 0:00:09]} 7. O-O {[%emt 0:00:03]} Nc6 {[%emt 0:00:06][%cal Bb8c6,Bc6d4,Bd4e2][%mdl 32] 7...e5 is a critical line. A91: Classical Dutch: Early Deviations.} 8. Nf4 {[%emt 0:01:09]} e5 {[%emt 0:00:16]} 9. dxe5 {[%emt 0:00:22]} (9. d5 {is interesting.} Na5 10. Ne6 Bxe6 11. dxe6 Nxc4 12. Qd3) 9... dxe5 {[%emt 0:00:02] White is slightly better.} 10. Qxd8 {[%emt 0:02:40]} Bxd8 {[%emt 0:00:37] [#]} 11. Nfd5 $146 {[%emt 0:00:54]} (11. Bxc6 $5 {[%cal Rc6d5]} exf4 12. Bf3 $11) ({Predecessor:} 11. Bxc6 bxc6 12. Nd3 e4 13. Nc5 Be7 14. Be3 Bd6 15. Rfd1 Ng4 16. Bd4 e3 17. fxe3 {1-0 (44) Jardim,D (1967)-Tashima,V (1877) Registro 2011}) 11... Nxd5 {[%emt 0:00:18]} (11... Nd4 $11 {is superior.}) 12. Nxd5 {[%emt 0:01:00]} (12. Bxd5+ $14 Kh8 13. Bd2) 12... Nd4 $15 {[%emt 0:00:05]} 13. e3 {[%emt 0:00:13]} ({White should try} 13. Nc3 $15) 13... Ne2+ $17 {[%emt 0:00:54]} 14. Kh1 {[%emt 0:00:02]} c6 {[%emt 0:00:01]} (14... Nxc1 $1 $17 15. Raxc1 c6) 15. Nc3 {[%emt 0:00:11]} (15. Bd2 $1 $11 {was the only way to keep the balance.}) 15... Nxc3 {[%emt 0:00:11] Black is more active.} 16. bxc3 {[%emt 0:00:01]} Ba5 {[%emt 0:00:17]} 17. Ba3 {[%emt 0:00:24]} Rd8 {[%emt 0:00:02]} 18. Bb4 {[%emt 0:00:15]} Bc7 {[%emt 0:00:04]} 19. e4 {[%emt 0:01:57]} Be6 {[%emt 0:01:16]} (19... f4 $17 20. Rfd1 Be6) 20. exf5 $15 {[%emt 0:00:15]} Bxc4 {[%emt 0:00:03]} 21. Rfd1 {[%emt 0:00:30]} (21. Rfe1 $15) 21... a5 {[%emt 0:00:04]} (21... Rxd1+ $17 22. Rxd1 Rd8 23. Rxd8+ Bxd8) 22. Be7 {[%emt 0:00:11]} Rxd1+ 23. Rxd1 {[%emt 0:00:02]} Bxa2 {[%emt 0:00:21]} 24. Rd7 {[%emt 0:00:02]} Rc8 {[%emt 0:00:12][%cal Oa2d5]} 25. Bh3 {[%emt 0:00:19]} Bb6 {[%emt 0:02:24]} 26. f6 {[%emt 0:00:07]} Re8 {[%emt 0:00:42]} (26... Bxf2 $2 27. Rd2 (27. Rxb7 Bd5+ 28. Bg2 a4 $17) 27... Bd5+ 28. Rxd5 $1 {[%mdl 512]} cxd5 29. Be6+ Kh8 30. Bxc8 gxf6 31. Kg2 $18) (26... Ra8 $5 {[%cal Ra5a4]}) 27. f7+ {[%emt 0:00:05]} (27. Rxb7 $11 Bxf2 28. Kg2) 27... Bxf7 $17 {[%emt 0:00:02]} 28. Rxb7 $2 {[%emt 0:00:06]} (28. f3 $17) 28... Bxf2 $19 {[%emt 0:00:04] Threatens to win with ...Bd5+.} 29. Kg2 {[%emt 0:00:02]} Be1 {[%emt 0:00:13]} 30. Bc5 {[%emt 0:00:04]} Bxc3 {[%emt 0:00:08]} 31. Bd7 {[%emt 0:00:03]} Rd8 {[%emt 0:00:05] Hoping for ...Bd5+.} 32. Bxc6 {[%emt 0:00:04]} Bd5+ {[%emt 0:00:38]} 33. Bxd5+ {[%emt 0:00:02]} Rxd5 {[%emt 0:00:01][%mdl 4096] Endgame KRB-KRB} 34. Be3 {[%emt 0:00:12]} (34. Rc7 $142) 34... Rd3 {[%emt 0:00:12]} 35. Bc5 {[%emt 0:00:08]} Rd2+ {[%emt 0:00:08]} 36. Kh3 {[%emt 0:00:04]} Bd4 {[%emt 0:00:05]} 37. Rd7 {[%emt 0:00:04]} (37. Bxd4 {is a better defense.} exd4 38. Ra7) 37... a4 {[%emt 0:00:07][%cal Od4e3]} 38. Bb4 {[%emt 0:00:04]} Rb2 {[%emt 0:00:06]} 39. Bd6 {[%emt 0:00:01]} Rb3 {[%emt 0:00:12]} (39... h5 $142 40. Re7 g5 41. Bxe5 Kf8) 40. Kg4 {[%emt 0:00:06]} a3 {[%emt 0:00:07]} 41. Kf5 $2 {[%emt 0:00:07]} (41. Rd8+ Kf7 42. Ra8) 41... Rf3+ {[%emt 0:00:28]} (41... a2 $2 42. Rd8+ Kf7 43. Rf8#) 42. Ke6 {[%emt 0:00:01]} h6 $2 {[%emt 0:02:30]} (42... Rf6+ 43. Kd5 a2 44. Rd8+ Kf7) 43. Bxe5 {[%emt 0:00:10]} Bxe5 {[%emt 0:00:00]} 44. Kxe5 {[%emt 0:00:02] KR-KR} Kh7 $2 {[%emt 0:00:00]} (44... Rf7 $19 45. Rd2 Ra7) 45. Ra7 $11 {[%emt 0:00:07]} Kg6 {[%emt 0:00:00]} (45... Rf2 {simplifies} 46. Rxa3 Rxh2 47. Kf4 Rc2) 46. Ke4 {[%emt 0:00:02]} Rb3 {[%emt 0:00:00]} 47. Kf4 $2 {[%emt 0:00:06][%mdl 8192] [#]} (47. Ra5 $11) 47... Kf6 $2 {[%emt 0:00:00]} ({Black should play} 47... Kh5 $1 $19 48. Kf5 Rf3+ 49. Ke4 Rb3) 48. Ra6+ {[%emt 0:00:04]} Kf7 {[%emt 0:00:00]} 49. Ra7+ {[%emt 0:00:00]} Kg6 {[%emt 0:00:00] And now ...Kh5 would win.} 50. Ra6+ $2 {[%emt 0:00:07][%mdl 8192] Black keeps a firm grip on the game.} (50. Kg4 $15) 50... Kh5 $19 {[%emt 0:00:00]} 51. g4+ {[%emt 0:00:13]} Kh4 {[%emt 0:00:00]} 52. Kf5 {[%emt 0:00:03]} Rf3+ {[%emt 0:00:00]} 53. Ke4 {[%emt 0:00:08]} Rb3 {[%emt 0:00:00]} (53... Kxg4 $2 {loses.} 54. Rg6+ Kh5 55. Rxg7 $19) 54. Kf5 $1 {[%emt 0:00:04]} Rb5+ {[%emt 0:00:06]} 55. Kf4 {[%emt 0:00:06]} g5+ {[%emt 0:00:02]} 56. Ke4 {[%emt 0:00:05]} Rb4+ {[%emt 0:00:01]} (56... Kxg4 $142 57. Rxa3 h5 58. h3+ Kh4) 57. Kf5 {[%emt 0:00:02] [#]} Rf4+ $1 {[%emt 0:00:09]} (57... Rxg4 $2 58. Rxh6#) 58. Kg6 {[%emt 0:00:08]} Rxg4 {[%emt 0:00:44]} 59. Rxa3 {[%emt 0:00:05]} h5 {[%emt 0:00:03]} 60. Kh6 {[%emt 0:00:05]} Rb4 {[%emt 0:00:04]} 61. Kg6 {[%emt 0:00:03]} g4 {[%emt 0:00:06] ( -> ...Rb6+)} 62. Kf5 {[%emt 0:00:05]} Rb2 {[%emt 0:00:03]} 63. h3 {[%emt 0:00:04]} g3 {[%emt 0:00:10] Black mates.} 64. Kf4 {[%emt 0:00:06]} Rf2+ {[%emt 0:00:02]} ({And not} 64... Kxh3 65. Rxg3+ Kh4 66. Rd3 $11) 65. Ke3 {[%emt 0:00:01]} Kxh3 {[%emt 0:00:02]} 66. Ra5 {[%emt 0:00:02]} h4 {[%emt 0:00:01]} 67. Rg5 {[%emt 0:00:01]} Rf7 {[%emt 0:00:01]} 68. Rg8 {[%emt 0:00:07]} g2 {[%emt 0:00:02]} 69. Ke2 {[%emt 0:00:05]} Kh2 {[%emt 0:00:01]} 70. Rh8 {[%emt 0:00:03]} h3 {[%emt 0:00:02]} ({Worse is} 70... g1=B 71. Rxh4+ Kg3 72. Ra4 $15) 71. Rg8 {[%emt 0:00:02]} g1=Q {[%emt 0:00:03]} 72. Rxg1 {[%emt 0:00:02]} Kxg1 {[%emt 0:00:02]} 73. Ke3 {[%emt 0:00:01]} h2 {[%emt 0:00:03]} 74. Kd4 {[%emt 0:00:00]} h1=Q {[%emt 0:00:02]} 75. Ke5 {[%emt 0:00:01]} Qh4 {[%emt 0:00:05]} 76. Ke6 {[%emt 0:00:01]} Re7+ {[%emt 0:00:56] Weighted Error Value: White=1.08/Black=0.76} 0-1

[Event "Romanian Rapid Open 2022"]
[Site "Sebes"]
[Date "2022.12.02"]
[Round "7.25"]
[White "Vrencian, Lehel"]
[Black "Tariceanu, Victor"]
[Result "1-0"]
[ECO "C46"]
[WhiteElo "2226"]
[BlackElo "1720"]
[Annotator "TA"]
[PlyCount "95"]
[EventDate "2022.12.02"]
[EventType "rapid"]
[EventCountry "ROU"]
[SourceTitle "playchess.com"]
[Source "ChessBase"]
[SourceQuality "1"]
[TimeControl "600+5"]

{[%evp 14,95,101,102,95,83,78,66,73,64,69,56,82,65,61,75,125,129,160,161,149,148,153,150,160,156,174,165,182,184,189,186,233,220,253,255,353,296,386,378,472,475,519,505,600,593,546,412,385,300,281,294,288,285,370,340,370,366,417,341,341,339,320,277,547,547,468,221,596,558,729,711,669,563,698,543,531,515,843,814,748,721,791,608]} 1. e4 {[%emt 0:00:02]} e5 {[%emt 0:00:01]} 2. Nf3 {[%emt 0:00:03]} d6 {[%emt 0:00:01]} 3. d4 {[%emt 0:00:02]} exd4 {[%emt 0:00:01]} 4. Nxd4 {[%emt 0:00:01]} g6 {[%emt 0:00:02]} 5. Nc3 {[%emt 0:00:03]} Bg7 {[%emt 0:00:01]} 6. Be3 {[%emt 0:00:19]} Ne7 {[%emt 0:00:02]} 7. Qd2 {[%emt 0:00:07]} Nbc6 {[%emt 0:00:03]} 8. O-O-O {[%emt 0:00:11]} Be6 {[%emt 0:00:08] C46: 3 Nc3: Unusual Black 3rd moves.} 9. Nxe6 {[%emt 0:01:37]} fxe6 {[%emt 0:00:03]} 10. h4 {[%emt 0:00:10] [#]} Qd7 $146 {[%emt 0:00:02] White is slightly better.} ({Predecessor:} 10... h5 11. Be2 Ne5 12. f4 Ng4 13. Bxg4 hxg4 14. Qe2 Bxc3 15. bxc3 Qd7 16. Qxg4 Rh5 {0-1 (47) Sevdimaliyev,U (2505)-Rzayev,B (2416) Baku 2015}) 11. h5 {[%emt 0:00:02]} O-O-O {[%emt 0:00:08]} 12. Kb1 {[%emt 0:00:36]} gxh5 {[%emt 0:00:16]} 13. Rxh5 {[%emt 0:00:15]} Kb8 {[%emt 0:00:02]} 14. Be2 {[%emt 0:00:40]} e5 {[%emt 0:00:08] Black is now going downhill.} (14... Qe8 $142) 15. Rdh1 $16 {[%emt 0:00:23] White is much more active.} Qe6 {[%emt 0:00:20]} 16. Rxh7 {[%emt 0:00:40]} Rxh7 {[%emt 0:00:06]} 17. Rxh7 {[%emt 0:00:01]} Qg6 {[%emt 0:00:03]} 18. Rh2 {[%emt 0:00:04]} Rf8 {[%emt 0:00:28]} 19. Bd3 {[%emt 0:00:53][%cal Be2d3,Bd3c2,Bc2b3][%mdl 32]} a6 {[%emt 0:01:03]} 20. a3 {[%emt 0:00:05]} Qf7 {[%emt 0:00:49]} 21. Qd1 {[%emt 0:01:31]} Nd4 {[%emt 0:00:11]} 22. Ne2 {[%emt 0:00:18][%cal Bc3e2,Be2g3,Bg3h5][%mdl 32]} c5 {[%emt 0:00:08]} (22... Ng8 {was necessary.} 23. c3 Nxe2) 23. c3 {[%emt 0:00:21]} Ndc6 {[%emt 0:00:28]} 24. Bc2 {[%emt 0:00:08]} ({Much less strong is} 24. Rh7 Qg8 $18) 24... Qe6 {[%emt 0:00:04]} 25. Ng3 {[%emt 0:00:53]} b6 {[%emt 0:00:31]} 26. Rh7 {[%emt 0:00:16]} Qg6 {[%emt 0:00:20]} 27. Qh5 {[%emt 0:00:05] [#] Qxg6 is the strong threat.} Qxh5 {[%emt 0:00:06]} 28. Nxh5 {[%emt 0:00:22]} Bh8 {[%emt 0:00:06]} 29. Bb3 {[%emt 0:00:12]} Ng6 {[%emt 0:00:45]} 30. Rh6 {[%emt 0:00:09]} Nf4 {[%emt 0:00:11]} 31. Bxf4 {[%emt 0:00:27]} ({Don't do} 31. Rxd6 Nxh5 32. Rxc6 Rf6 $18) 31... exf4 {[%emt 0:00:06]} 32. Rxd6 {[%emt 0:00:01]} Kc7 {[%emt 0:00:02]} 33. Rh6 {[%emt 0:00:09]} Ne5 {[%emt 0:00:04]} 34. Bd5 {[%emt 0:00:15]} Nd3 {[%emt 0:00:25]} 35. f3 {[%emt 0:00:14]} Ne1 {[%emt 0:00:04]} 36. Rc6+ {[%emt 0:00:03]} Kd7 {[%emt 0:00:05]} 37. Rxb6 {[%emt 0:00:05]} Nxg2 {[%emt 0:00:02]} 38. Rxa6 {[%emt 0:00:15]} Rb8 $2 {[%emt 0:00:11]} (38... Ne1 39. Be6+ Kc7) 39. Ra7+ $18 {[%emt 0:00:19]} Kd6 {[%emt 0:00:03] [#]} 40. Rb7 {[%emt 0:00:04]} (40. Nf6 $142 $1 {[%mdl 512] White threatens Rd7+ and mate.} Bxf6 41. Ra6+ Kd7 42. Rxf6) 40... Rc8 $2 {[%emt 0:00:22]} (40... Rxb7 41. Bxb7 Be5) 41. a4 {[%emt 0:00:20][%cal Ba3a4,Ba4a5][%mdl 32] White is clearly winning.} Be5 {[%emt 0:00:05]} 42. Rb6+ {[%emt 0:00:05]} Kd7 {[%emt 0:00:05]} 43. Rg6 {[%emt 0:00:20]} Rh8 {[%emt 0:00:11]} 44. Rxg2 {[%emt 0:00:25]} Rxh5 {[%emt 0:00:02]} 45. Kc2 {[%emt 0:00:03]} Kc7 {[%emt 0:00:05]} (45... Rh6 $142 46. a5 Rh1) 46. a5 {[%emt 0:00:03]} Rh6 {[%emt 0:00:03]} 47. b4 {[%emt 0:00:02]} Ra6 {[%emt 0:00:11]} 48. Kb3 {[%emt 0:00:13] Weighted Error Value: White=0.30/Black=0.52} 1-0

[Event "Romanian Rapid Open 2022"]
[Site "Sebes"]
[Date "2022.12.02"]
[Round "7.26"]
[White "Zubcu, Vlad-George"]
[Black "Stefan, Iulia-Cristiana"]
[Result "0-1"]
[ECO "B08"]
[WhiteElo "2135"]
[BlackElo "1662"]
[Annotator "TA"]
[PlyCount "134"]
[EventDate "2022.12.02"]
[EventType "rapid"]
[EventCountry "ROU"]
[SourceTitle "playchess.com"]
[Source "ChessBase"]
[SourceQuality "1"]
[TimeControl "600+5"]

{[%evp 10,134,31,23,37,-12,-18,-29,-27,-23,26,11,19,6,14,-10,0,-7,0,-8,-7,-31,-9,-24,-14,-13,0,0,15,0,0,-8,22,29,19,0,19,20,36,-29,-33,-18,-15,-14,0,-29,-29,-62,-8,-19,0,0,0,0,75,32,47,38,36,20,44,0,24,27,24,22,71,6,6,6,6,-97,-125,-107,-92,-108,-110,-104,-70,-630,-575,-1645,-828,-779,-680,-1012,-981,-29979,-1107,-29974,-1352,-1666,-1631,-4670,-1533,-2051,-2020,-2326,-1506,-29976,-29978,-6133,-5547,-2646,-2228,-29982,-29979,-29978,0,-29978,-29979,-29978,-29979,-29979,-29980,-29980,-29980,-29978,-29975,-29983,-29977,-29976,-29978,-29978,-29979,-29978,-29971]} 1. d4 {[%emt 0:00:02]} d6 {[%emt 0:00:01][%cal Bd7d6,Bd6d5,Bd5e4][%mdl 32]} 2. Nf3 {[%emt 0:00:02]} g6 {[%emt 0:00:03]} 3. e4 {[%emt 0:00:04]} Nf6 {[%emt 0:00:12]} 4. Nc3 {[%emt 0:00:01]} Bg7 {[%emt 0:00:01]} 5. Bg5 {[%emt 0:00:01]} c6 {[%emt 0:00:04]} 6. Qd2 {[%emt 0:00:00]} d5 {[%emt 0:00:29] 6...0-0 is the modern continuation. B08: Pirc Defence: Classical System.} 7. e5 {[%emt 0:00:31]} (7. exd5 $14 cxd5 8. Bd3) 7... Ne4 $11 {[%emt 0:00:03]} 8. Nxe4 {[%emt 0:00:03]} dxe4 {[%emt 0:00:02] Black has an edge.} 9. Ng1 {[%emt 0:00:02]} f6 {[%emt 0:01:17]} (9... c5 $142) 10. exf6 {[%emt 0:00:32]} exf6 {[%emt 0:00:08]} 11. Be3 {[%emt 0:00:01]} Be6 {[%emt 0:00:16] [#]} 12. Qb4 $146 {[%emt 0:00:15]} ({Predecessor:} 12. h4 Nd7 13. Nh3 Nb6 14. Nf4 Qe7 15. b3 Bf7 16. c4 f5 17. Rd1 O-O 18. Be2 {½-½ (36) Zsirai,P (2308)-Csoke,K (2258) Hungary 2018}) 12... Qe7 {[%emt 0:00:23]} 13. Qxe7+ {[%emt 0:00:52]} Kxe7 {[%emt 0:00:02]} 14. O-O-O {[%emt 0:00:05]} Nd7 {[%emt 0:00:16][%cal Od7b6]} (14... Bxa2 15. b3 $16) 15. h4 {[%emt 0:00:01]} f5 {[%emt 0:01:02]} ({Don't do} 15... Bxa2 16. b3 $16) 16. Ne2 {[%emt 0:00:01]} Nb6 {[%emt 0:00:19]} ({Don't take} 16... Bxa2 17. b3 $16) 17. Nf4 {[%emt 0:00:17]} Bf7 {[%emt 0:00:09]} ({Don't play} 17... Bxa2 18. b3 $16) 18. Be2 {[%emt 0:01:09]} Nd5 {[%emt 0:00:24]} (18... Bxa2 $2 19. b3 $18) 19. Nxd5+ {[%emt 0:00:03]} cxd5 {[%emt 0:00:17]} 20. g4 {[%emt 0:00:19]} h5 {[%emt 0:00:22]} (20... Be6 $5 {[%cal Rf5g4]}) 21. gxf5 {[%emt 0:00:18]} gxf5 {[%emt 0:00:02]} 22. Kd2 {[%emt 0:00:11]} Bh6 {[%emt 0:00:15]} 23. Bxh6 {[%emt 0:00:15]} Rxh6 {[%emt 0:00:01]} 24. Ke3 {[%emt 0:00:04]} (24. Rdg1 $14) 24... Rb6 {[%emt 0:00:37]} 25. Rb1 {[%emt 0:00:26]} Rg8 {[%emt 0:00:01]} 26. b3 {[%emt 0:00:26]} Rc8 {[%emt 0:00:17]} 27. Rbc1 {[%emt 0:00:48]} Rbc6 {[%emt 0:00:09]} 28. Kd2 {[%emt 0:00:06]} f4 {[%emt 0:00:08] Black is more active.} ({Better is} 28... Rc3 $1 $15) 29. Rhg1 {[%emt 0:00:19]} f3 {[%emt 0:01:33]} (29... Rc3 $5 {[%cal Rc3h3]}) 30. Bb5 {[%emt 0:00:02]} Rb6 {[%emt 0:00:31]} 31. Bf1 {[%emt 0:00:01]} Bg6 {[%emt 0:00:33]} (31... Rf6 $11) 32. Bh3 {[%emt 0:01:01]} Rc7 {[%emt 0:00:32]} 33. Rg5 {[%emt 0:00:14]} Bf7 {[%emt 0:00:24]} 34. Re5+ {[%emt 0:00:33]} Kf8 {[%emt 0:00:42]} 35. Rg5 {[%emt 0:00:30]} Rbc6 {[%emt 0:00:21]} 36. Bf1 {[%emt 0:00:32]} a6 {[%emt 0:00:14]} 37. a4 {[%emt 0:00:13]} Ke7 {[%emt 0:00:31]} (37... Rb6 $11 {was preferrable.}) 38. c4 {[%emt 0:01:03]} (38. a5 $16) 38... dxc4 {[%emt 0:00:11]} 39. bxc4 {[%emt 0:00:01]} Bxc4 {[%emt 0:00:17]} 40. d5 {[%emt 0:00:01] [#]} (40. Rxc4 $11 {remains equal.} Rxc4 41. Bxc4 Rxc4 42. Ke3) 40... Bxd5 $1 $17 {[%emt 0:00:08]} 41. Rxc6 {[%emt 0:00:40]} Bxc6 {[%emt 0:00:01]} 42. Rxh5 {[%emt 0:00:17][%mdl 4096] Endgame And now Rh7+ would win. KRB-KRB} Rd7+ {[%emt 0:00:02]} 43. Ke3 {[%emt 0:00:05]} Kf6 {[%emt 0:00:09]} 44. Bxa6 $2 {[%emt 0:00:19][%mdl 8192]} bxa6 $15 {[%emt 0:00:06] KRB-KR} 45. Rh6+ {[%emt 0:00:01]} Ke5 {[%emt 0:00:02][%csl Ge4][%cal Rd7d3]} 46. Rh5+ {[%emt 0:00:08]} Kd6 {[%emt 0:00:05]} 47. Rh6+ {[%emt 0:00:02]} Kc5 {[%emt 0:00:01] White must now prevent ...Rd3+.} 48. h5 {[%emt 0:00:05]} a5 {[%emt 0:00:08]} (48... Rd3+ $142 49. Kf4 e3 50. Kg3 e2 51. Re6 Kd5 52. Re7 Kd6 53. Rg7 e1=Q 54. Kh4 Qh1+ 55. Kg5 Rd5+ 56. Kg4 Qxh5+ 57. Kg3 Rd4 58. Rd7+ Bxd7 59. a5 Qh3#) 49. Rg6 {[%emt 0:00:04]} Rh7 {[%emt 0:00:05]} (49... Rd3+ $142 50. Kf4 e3 51. Rg1 e2 52. h6 Rd4+ 53. Kf5 Rd1 54. h7 Rxg1 55. h8=Q e1=Q 56. Qf8+ Kc4 57. Qf7+ Kb4 58. Kf6 Qxf2 59. Qf8+ Kxa4 60. Qf7 Qd4+ 61. Kf5 Bd7+ 62. Qxd7+ Qxd7+ 63. Kf4 f2 64. Ke5 f1=Q 65. Ke4 Rg4+ 66. Ke5 Qff5#) 50. Rg5+ {[%emt 0:00:11]} Kb4 {[%emt 0:00:05]} 51. Kd4 {[%emt 0:00:01]} Kxa4 {[%emt 0:00:07] ...Rd7+ is the strong threat.} 52. Kc5 {[%emt 0:00:01]} Be8 {[%emt 0:00:04]} 53. Rg1 {[%emt 0:00:22]} Rxh5+ {[%emt 0:00:03]} 54. Kc4 {[%emt 0:00:00]} Bb5+ {[%emt 0:00:04]} 55. Kc3 {[%emt 0:00:02]} Rc5+ {[%emt 0:00:04]} 56. Kd4 {[%emt 0:00:02]} Rc4+ {[%emt 0:00:02]} 57. Kd5 {[%emt 0:00:01]} Kb3 {[%emt 0:00:02]} 58. Rb1+ {[%emt 0:00:02]} Ka4 $2 {[%emt 0:00:02]} (58... Kc3 {mates} 59. Rxb5 e3 60. fxe3 f2 61. Rb1 Kd3 62. e4 Rd4+ 63. Kc6 Rxe4 64. Rb3+ Ke2 65. Rb2+ Kf3 66. Rb3+ Kg4 67. Rb1 Re1 68. Rb8 f1=Q 69. Rg8+ Kh5 70. Rh8+ Kg6 71. Rg8+ Kf7 72. Rg5 Qc4+ 73. Rc5 Re6+ 74. Kc7 Qxc5+ 75. Kb7 Qc6+ 76. Kb8 Re8+ 77. Ka7 Ra8#) 59. Ra1+ $2 {[%emt 0:00:01][%mdl 8192] [#]} (59. Rg1 $11 e3 60. Ra1+ Kb3 61. fxe3) 59... Kb4 {[%emt 0:00:08] Black mates.} 60. Rb1+ {[%emt 0:00:00]} Kc3 {[%emt 0:00:10]} 61. Rxb5 {[%emt 0:00:02] KR-KR} a4 {[%emt 0:00:04]} 62. Rb1 {[%emt 0:00:03]} Rb4 {[%emt 0:00:03]} 63. Rc1+ {[%emt 0:00:07]} Kd2 {[%emt 0:00:05]} 64. Rc8 {[%emt 0:00:06]} Ke2 {[%emt 0:00:04]} 65. Rc2+ {[%emt 0:00:03]} Kd3 {[%emt 0:00:27]} 66. Ra2 {[%emt 0:00:00]} Kc3 {[%emt 0:00:00]} 67. Kc5 {[%emt 0:00:11]} Rc4+ {[%emt 0:00:00] Weighted Error Value: White=0.82/Black=0.66} 0-1

[Event "Romanian Rapid Open 2022"]
[Site "Sebes"]
[Date "2022.12.02"]
[Round "7.27"]
[White "Ceteras, Marius-Nicolae"]
[Black "Lupulescu, Adrian-Calin"]
[Result "1-0"]
[ECO "E09"]
[WhiteElo "2391"]
[BlackElo "1930"]
[Annotator "TA"]
[PlyCount "93"]
[EventDate "2022.12.02"]
[EventType "rapid"]
[EventCountry "ROU"]
[SourceTitle "playchess.com"]
[Source "ChessBase"]
[SourceQuality "1"]
[TimeControl "600+5"]

{[%evp 23,93,40,41,29,47,41,69,47,56,42,107,107,115,114,108,72,71,40,91,91,93,90,213,213,212,179,245,178,172,153,150,154,154,122,122,3,136,134,143,127,127,116,131,99,100,75,73,79,141,141,256,255,249,166,196,187,175,151,171,144,187,8,8,8,8,8,8,8,29988,29989,29989,29990]} 1. d4 {[%emt 0:00:01]} d5 {[%emt 0:00:01]} 2. c4 {[%emt 0:00:01]} e6 {[%emt 0:00:01]} 3. Nf3 {[%emt 0:00:01]} c6 {[%emt 0:00:01]} 4. Qc2 {[%emt 0:00:05]} Nf6 {[%emt 0:00:01]} 5. Nbd2 {[%emt 0:00:03]} Nbd7 {[%emt 0:00:01]} 6. g3 {[%emt 0:00:01]} Be7 {[%emt 0:00:02]} 7. Bg2 {[%emt 0:00:01]} O-O {[%emt 0:00:01]} 8. O-O {[%emt 0:00:02]} b6 {[%emt 0:00:01]} 9. e4 {[%emt 0:00:01]} dxe4 {[%emt 0:00:03]} 10. Nxe4 {[%emt 0:00:01]} Bb7 {[%emt 0:00:02]} 11. Rd1 {[%emt 0:00:11]} Qc8 {[%emt 0:00:52]} 12. Nxf6+ {[%emt 0:00:27]} Nxf6 {[%emt 0:02:55]} 13. c5 {[%emt 0:00:03] E09: Closed Catalan: Main Line: 7 Qc2 c6 8 Nbd2.} bxc5 {[%emt 0:02:13]} 14. dxc5 {[%emt 0:00:05]} Rd8 {[%emt 0:00:22] [#]} 15. Be3 $146 {[%emt 0:01:42] White is slightly better.} ({Predecessor:} 15. Bd2 a5 16. a3 Nd5 17. Ng5 g6 18. Rac1 a4 19. Qe4 h6 20. Nf3 Bf8 21. Ne5 {0-1 (35) Kozak,M (2213)-Vojtech,J (2115) Czech Republic 2011}) 15... Nd5 {[%emt 0:00:11]} 16. Bd4 {[%emt 0:00:01]} (16. Bg5 $5 {[%cal Rd1d5]}) 16... Bf6 {[%emt 0:00:37]} (16... Qc7 $14) 17. Bxf6 $16 {[%emt 0:00:15]} Nxf6 {[%emt 0:00:16]} 18. Ne5 {[%emt 0:00:01]} Qc7 {[%emt 0:00:29]} 19. f4 {[%emt 0:00:06] White is much more active.} Nd5 {[%emt 0:00:19]} 20. Qf2 {[%emt 0:01:17] Prevents Ne3.} a5 {[%emt 0:00:23]} (20... Ba6 $14) 21. Nc4 {[%emt 0:00:10]} Ba6 {[%emt 0:00:02]} 22. Nd6 {[%emt 0:00:08]} Rxd6 {[%emt 0:00:41]} (22... Rab8 $16 {was called for.}) 23. cxd6 $18 {[%emt 0:00:02]} Qxd6 {[%emt 0:00:02]} 24. Rac1 {[%emt 0:00:27]} Rb8 {[%emt 0:00:11]} (24... Bb7 $142 25. Qb6 Qb8) 25. Rd2 {[%emt 0:00:59]} a4 {[%emt 0:00:39]} 26. Qc5 {[%emt 0:00:44] Inhibits g6.} Qxc5+ {[%emt 0:00:32]} 27. Rxc5 {[%emt 0:00:02]} Bb5 {[%emt 0:00:06]} 28. Kf2 {[%emt 0:00:14]} g6 {[%emt 0:00:01]} 29. Bf1 {[%emt 0:00:51]} (29. Kf3 $16) 29... Kg7 {[%emt 0:01:15]} (29... Nf6 $1 $11 {keeps the balance.} 30. Bg2 h5) 30. Bxb5 $16 {[%emt 0:00:19]} cxb5 {[%emt 0:00:01][%mdl 4096] Endgame KRR-KRN} 31. Rd4 {[%emt 0:00:20]} Kf6 {[%emt 0:00:03]} 32. Ke2 {[%emt 0:00:06]} h5 {[%emt 0:00:01]} 33. Kd2 {[%emt 0:00:04]} h4 {[%emt 0:00:03]} 34. a3 {[%emt 0:00:47]} ({Don't take} 34. gxh4 Ke7 $14) 34... hxg3 {[%emt 0:00:02]} 35. hxg3 {[%emt 0:00:02]} g5 {[%emt 0:00:04]} ({Better is} 35... Ke7) 36. fxg5+ {[%emt 0:00:44]} Kxg5 {[%emt 0:00:02]} (36... Kg6 $16 37. Rh4 Kg7) 37. Rb4 $18 {[%emt 0:00:16]} f5 {[%emt 0:00:19]} 38. Rbxb5 {[%emt 0:00:07]} Rd8 {[%emt 0:00:05]} 39. Ke2 {[%emt 0:00:24]} Kg4 {[%emt 0:00:01]} 40. Kf2 {[%emt 0:00:01] Rc4+ is the strong threat.} Nf6 {[%emt 0:00:08] [#] Threatens to win with ...Ne4+.} 41. Rc4+ {[%emt 0:00:41]} Ne4+ {[%emt 0:00:01]} 42. Rxe4+ $2 {[%emt 0:00:02]} fxe4 $11 {[%emt 0:00:01]} 43. Ke3 {[%emt 0:00:08]} Kxg3 {[%emt 0:00:07]} 44. Rb4 {[%emt 0:00:02]} Rd3+ {[%emt 0:00:05]} 45. Kxe4 {[%emt 0:00:05]} Rb3 {[%emt 0:00:04][%mdl 8192] [#]} (45... Rd2 $11) 46. Rxb3+ {[%emt 0:00:04]} ({Not} 46. Rxa4 Rxb2 47. Ke5 Re2+ 48. Re4 Ra2 $11) 46... axb3 {[%emt 0:00:02]} 47. a4 {[%emt 0:00:02] Weighted Error Value: White=0.28 (precise) /Black=0.46} 1-0